bitfinex-derivatives/quotes_ETHF0:USTF0_20260128
["timestamp","ask_amount","ask_price","bid_price","bid_amount"]
[1769625630611,0.14387656,3011.7,3010.5,0.14292558]
[1769625631417,0.14387656,3011.5,3009.8,0.14292558]
[1769625631615,0.14387656,3011.5,3009.8,0.14690352]
[1769625631820,0.14387656,3011.4,3009.8,0.14690352]
[1769625633713,0.14387656,3011.1,3010.0,0.14292558]
[1769625635016,0.14387656,3010.9,3010.0,0.14292558]
[1769625635412,0.14387656,3010.9,3009.8,1.06529654]
[1769625635413,3.325,3011.8,3010.8,2.1226372]
[1769625635616,0.15350553,3012.2,3011.1,1.0613186]
[1769625636611,0.15350553,3012.2,3011.3,1.0613186]
[1769625637621,0.15350553,3012.2,3011.1,0.056161]
[1769625639324,7.032,3012.1,3011.1,0.056161]
[1769625639624,7.17906925,3012.1,3011.1,0.056161]
[1769625642629,0.14687927,3012.0,3011.1,0.056161]
[1769625643530,2.457,3011.9,3011.1,0.056161]
[1769625643723,0.14687927,3012.0,3011.1,0.056161]
[1769625644028,0.14648365,3011.7,3010.4,0.05038948]
[1769625644630,0.14640357,3011.5,3010.4,0.05038948]
[1769625645528,0.14640357,3011.5,3010.2,0.04431274]
[1769625646835,0.14829521,3011.3,3010.2,0.04431274]
[1769625651424,2.09955754,3011.2,3010.2,0.04431274]
[1769625651624,0.14955754,3011.1,3010.2,0.04431274]
[1769625652328,0.14946723,3011.7,3010.2,0.04431274]
[1769625652533,3.325,3011.7,3010.6,0.03427728]
[1769625652832,1.95,3011.7,3010.6,0.03427728]
[1769625653331,0.14946723,3012.0,3010.6,0.03427728]
[1769625653532,5.275,3011.9,3010.6,0.03427728]
[1769625654028,5.42493971,3011.9,3010.6,0.03427728]
[1769625654229,0.14993971,3011.8,3010.6,0.03427728]
[1769625655431,1.965,3011.7,3010.8,0.03039517]
[1769625657032,1.95,3011.6,3010.8,0.03039517]
[1769625659634,0.15311855,3011.5,3010.7,0.18559568]
[1769625660526,0.15311855,3011.5,3010.8,1.07912503]
[1769625660730,1.95,3011.6,3010.8,1.07912503]
[1769625661634,2.10294123,3011.6,3010.8,1.07912503]
[1769625661834,0.15294123,3011.5,3010.8,1.06069808]
[1769625662232,0.15294123,3011.5,3010.5,0.01749783]
[1769625662233,0.15294123,3011.5,3010.6,1.06069808]
[1769625662529,0.15294123,3011.5,3010.5,0.01749783]
[1769625663132,0.15294123,3011.5,3010.6,1.06069808]
[1769625663844,2.58102945,3011.4,3010.6,1.06069808]
[1769625664335,0.15302945,3011.4,3010.6,1.06069808]
[1769625664640,1.95,3011.3,3010.6,1.07500636]
[1769625665941,1.95,3011.3,3010.3,6.09683573]
[1769625665942,0.83092349,3011.3,3010.9,0.01307651]
[1769625666341,1.95,3011.3,3010.8,1.06069808]
[1769625666944,0.1530109,3011.6,3010.8,1.06069808]
[1769625667144,2.257,3011.3,3010.8,1.06069808]
[1769625668244,2.257,3011.3,3010.8,1.08033904]
[1769625669044,2.346,3011.3,3010.8,1.06069808]
[1769625669251,2.5085591,3011.3,3010.6,1.07941568]
[1769625669648,2.5085591,3011.3,3010.6,1.06069808]
[1769625671252,2.346,3011.3,3010.6,1.07920077]
[1769625671453,2.346,3011.3,3010.8,1.06069808]
[1769625672153,2.50792647,3011.3,3010.8,1.06069808]
[1769625672352,2.371,3011.3,3010.8,1.06069808]
[1769625672553,2.371,3011.3,3010.8,1.07634751]
[1769625672853,4.84815984,3011.5,3011.0,1.06069808]
[1769625673449,0.16147109,3011.4,3011.0,1.06069808]
[1769625673643,0.16147109,3011.4,3010.8,1.06069808]
[1769625674052,0.16147109,3011.4,3010.7,0.16629]
[1769625675153,0.16147109,3011.4,3010.8,1.06069808]
[1769625676862,0.16725526,3011.1,3010.4,5.93051573]
[1769625677058,0.16725526,3011.1,3010.2,7.20506401]
[1769625677250,0.16725526,3011.1,3010.1,5.93051573]
[1769625677450,0.16725526,3011.1,3010.0,5.93051573]
[1769625678355,0.16725526,3011.1,3009.9,7.05883574]
[1769625678952,0.16725526,3011.1,3009.9,1.12832001]
[1769625679661,0.16725526,3011.1,3009.8,5.93449367]
[1769625679662,0.16725526,3011.1,3009.8,6.99519175]
[1769625680052,0.16860269,3010.9,3010.0,1.06069808]
[1769625680353,0.16847078,3010.5,3009.8,0.00397794]
[1769625680560,5.52,3011.0,3009.3,5.93051573]
[1769625680561,0.16847078,3010.3,3009.3,5.93051573]
[1769625681059,0.16847078,3010.3,3009.2,5.93051573]
[1769625681452,0.16847078,3010.3,3009.3,1.06069808]
[1769625681653,0.16847078,3010.3,3009.5,1.06069808]
[1769625682562,0.16689956,3010.1,3009.5,1.06069808]
[1769625682754,0.16944675,3010.1,3009.5,1.06069808]
[1769625683956,0.16944675,3010.1,3009.3,1.06069808]
[1769625684254,0.16944675,3010.1,3009.2,0.003422]
[1769625685058,0.16944675,3010.1,3009.3,1.06069808]
[1769625685661,0.16944675,3010.1,3009.0,1.06069808]
[1769625685866,0.17766963,3009.9,3008.6,1.06069808]
[1769625686160,0.17766963,3009.7,3008.4,8.93576906]
[1769625686367,0.17766963,3009.5,3008.4,3.00525333]
[1769625686764,0.17766963,3009.5,3008.4,3.00891008]
[1769625687565,0.17766963,3009.5,3008.4,1.948212]
[1769625688064,0.17766963,3009.5,3008.4,0.56561194]
[1769625688265,0.17766963,3009.5,3008.4,0.61808281]
[1769625689264,0.17766963,3009.5,3008.4,0.56561194]
[1769625692763,0.1850805,3009.3,3008.4,0.56561194]
[1769625694669,0.1850805,3009.6,3008.5,0.07021028]
[1769625699372,0.1850805,3009.6,3008.4,0.56561194]
[1769625699373,0.1850805,3009.9,3008.7,0.06656448]
[1769625699580,0.00254719,3010.1,3008.8,0.06437245]
[1769625699873,0.18762769,3010.1,3008.8,0.06437245]
[1769625700870,0.00254719,3010.1,3008.9,0.06330028]
[1769625701174,0.00254719,3010.1,3009.1,0.06330028]
[1769625701474,0.1850805,3010.9,3009.5,0.06283102]
[1769625701670,0.1850805,3010.9,3008.6,1.59320065]
[1769625701671,0.1850805,3010.9,3009.6,0.06283102]
[1769625702373,0.18816941,3010.9,3009.6,0.06283102]
[1769625702878,0.00308891,3010.9,3009.7,0.06176397]
[1769625703672,0.00308891,3010.9,3009.8,0.06129392]
[1769625704179,0.00308891,3010.9,3009.8,0.22763392]
[1769625704379,0.00308891,3010.9,3009.9,0.06129392]
[1769625706768,0.18816941,3010.9,3009.9,0.06129392]
[1769625711580,0.18816941,3010.9,3009.3,0.04943751]
[1769625711786,0.18816941,3010.9,3009.2,0.16638]
[1769625712487,0.1850805,3010.7,3009.2,0.21479502]
[1769625712683,0.1850805,3010.7,3009.2,0.16638]
[1769625717487,0.17214054,3010.5,3008.6,6.1558352]
[1769625717694,0.17214054,3010.5,3008.7,0.05891947]
[1769625717990,0.17214054,3010.4,3008.7,0.05891947]
[1769625719593,0.17214054,3009.9,3008.4,0.62335488]
[1769625720185,0.17214054,3009.9,3008.5,0.05774294]
[1769625722086,0.17214054,3009.9,3008.4,0.56561194]
[1769625722489,0.17214054,3009.8,3008.4,0.56561194]
[1769625722885,0.17214054,3009.6,3008.4,0.56561194]
[1769625723688,0.16632,3010.3,3008.5,0.05335543]
[1769625723896,0.17214054,3010.2,3008.6,0.05335543]
[1769625724292,0.17214054,3010.2,3008.7,0.05335543]
[1769625725697,0.17214054,3010.2,3008.8,0.0542297]
[1769625726706,0.17214054,3010.8,3009.3,0.05319128]
[1769625727191,0.17214054,3010.8,3009.5,0.05319128]
[1769625727793,0.17214054,3010.8,3009.4,0.16636]
[1769625728195,0.17214054,3010.8,3009.0,0.05244345]
[1769625728595,0.17214054,3010.8,3009.1,0.05141097]
[1769625729694,0.17214054,3010.8,3009.1,5.9819267]
[1769625729900,0.17214054,3010.8,3009.1,0.05141097]
[1769625730499,0.17214054,3010.8,3009.1,6.1483067]
[1769625730705,0.17214054,3010.8,3009.2,0.04943871]
[1769625734018,0.17214054,3010.8,3009.3,0.0453359]
[1769625734220,0.17214054,3010.8,3009.4,0.0453359]
[1769625737224,0.00308891,3010.9,3010.1,0.04273818]
[1769625737521,0.17214054,3011.1,3010.1,0.04273818]
[1769625737718,0.17214054,3011.1,3010.0,0.16633]
[1769625738421,0.17581126,3011.1,3010.1,0.04287597]
[1769625739024,0.17581126,3011.1,3010.0,0.16633]
[1769625742330,0.17581126,3011.1,3010.0,0.20244145]
[1769625742730,0.17581126,3011.1,3010.2,0.03611145]
[1769625742930,0.16624,3011.8,3010.3,0.17731636]
[1769625743231,1.951,3012.1,3010.4,0.17731636]
[1769625743428,0.16621,3012.2,3010.4,0.17731636]
[1769625743624,1.951,3012.2,3010.4,0.17731636]
[1769625743833,2.22220483,3012.2,3010.3,0.16631]
[1769625744029,2.22220483,3012.2,3010.4,0.17731636]
[1769625744225,0.00268086,3012.2,3010.4,0.17731636]
[1769625745028,0.16262388,3012.1,3010.5,0.1677837]
[1769625745231,0.16262388,3012.1,3010.8,0.1677837]
[1769625745533,0.16262388,3012.1,3010.9,0.1677837]
[1769625745733,0.16618,3012.8,3011.2,0.1677837]
[1769625746728,0.16931794,3012.8,3011.2,0.1677837]
[1769625747227,0.00313794,3012.8,3011.2,0.17183123]
[1769625747735,0.16620749,3012.7,3011.2,0.17183123]
[1769625757330,0.16620749,3012.7,3010.8,0.17028915]
[1769625757537,0.16620749,3012.3,3010.8,0.00399915]
[1769625758040,0.16620749,3012.1,3010.8,0.00399915]
[1769625758542,0.16620749,3011.9,3010.8,0.00399915]
[1769625767147,0.33243749,3011.9,3010.3,0.17183123]
[1769625767442,0.16620749,3011.7,3010.3,0.17183123]
[1769625767745,0.16620749,3011.7,3010.1,0.17183123]
[1769625768141,0.16620749,3011.7,3010.1,0.17453246]
[1769625770045,0.16620749,3011.7,3010.2,0.17183123]
[1769625770243,0.16620749,3011.7,3010.3,0.17183123]
[1769625777154,0.16620749,3011.7,3010.1,0.00270123]
[1769625777352,0.16620749,3011.7,3010.1,0.15581081]
[1769625778249,0.14455762,3011.6,3010.1,0.00270123]
[1769625778452,0.14455762,3011.5,3010.1,0.00270123]
[1769625779653,0.14455762,3011.3,3010.1,1.06387898]
[1769625780747,0.14455762,3011.1,3010.1,0.00270123]
[1769625780955,0.14455762,3010.7,3009.7,1.21428733]
[1769625781556,0.14455762,3010.7,3009.9,1.06117775]
[1769625781759,0.14455762,3010.7,3009.6,0.15310958]
[1769625782053,0.14455762,3010.7,3009.7,1.21428733]
[1769625783351,0.14455762,3010.7,3009.7,0.15310958]
[1769625788459,0.14455762,3010.9,3009.7,0.15310958]
[1769625788853,0.14455762,3011.1,3009.7,0.15310958]
[1769625789155,0.14455762,3011.4,3009.9,0.15310958]
[1769625798861,2.09555762,3011.4,3009.9,0.15310958]
[1769625799060,0.14455762,3011.3,3009.9,0.15310958]
[1769625800155,0.14455762,3012.1,3010.1,0.15310958]
[1769625800360,0.14455762,3011.9,3010.4,0.15310958]
[1769625800660,0.14455762,3011.9,3010.6,0.15310958]
[1769625803558,0.14455762,3011.9,3010.8,1.06068292]
[1769625803954,0.14455762,3011.9,3010.8,1.2137925]
[1769625805064,0.13488707,3012.1,3011.6,1.06068292]
[1769625805367,0.13488707,3012.1,3011.4,1.06068292]
[1769625806067,0.13488707,3012.1,3011.3,0.13907265]
[1769625808660,0.14546811,3012.3,3011.3,0.13907265]
[1769625809760,0.14546811,3012.3,3011.5,0.14283763]
[1769625812069,1.06068292,3012.2,3011.2,0.14283763]
[1769625812269,0.14546811,3012.1,3011.2,0.14283763]
[1769625816870,0.14546811,3012.1,3011.3,0.14283763]
[1769625818875,0.14546811,3012.1,3010.9,0.14283763]
[1769625829284,0.1662,3012.4,3010.9,0.14283763]
[1769625829285,0.31166811,3012.4,3011.0,0.14283763]
[1769625829486,0.14546811,3012.3,3011.0,0.14283763]
[1769625830585,0.14546811,3012.3,3011.2,0.14283763]
[1769625839796,0.16931794,3012.8,3011.4,0.13961903]
[1769625839797,0.14561517,3012.7,3011.4,0.13961903]
[1769625840000,0.14561517,3012.7,3011.8,0.13961903]
[1769625840190,0.14561517,3012.7,3011.8,0.00362994]
[1769625841603,3.28484604,3012.6,3011.8,0.00362994]
[1769625841803,0.14561517,3012.5,3011.8,0.00362994]
[1769625845410,0.14561517,3012.5,3011.3,0.13961903]
[1769625846408,0.14561517,3012.5,3011.3,0.14205034]
[1769625849108,0.14561517,3012.5,3011.4,0.13961903]
[1769625849415,0.14875311,3012.8,3011.5,0.13961903]
[1769625849711,3.42113964,3012.7,3011.5,0.13961903]
[1769625850011,0.14875311,3012.8,3011.5,0.13961903]
[1769625850208,3.27555129,3012.7,3011.5,0.13961903]
[1769625850410,0.14875311,3012.8,3011.5,0.13961903]
[1769625850611,3.27545425,3012.7,3011.5,0.13961903]
[1769625850814,0.14875311,3012.8,3011.5,0.13961903]
[1769625851117,3.42106454,3012.7,3011.5,0.13961903]
[1769625851416,0.14561517,3012.7,3011.5,0.13961903]
[1769625853711,0.00313794,3012.8,3011.8,0.13961903]
[1769625853903,40.96613,3013.6,3011.8,0.13961903]
[1769625853904,0.14561517,3013.1,3012.3,0.13961903]
[1769625854904,0.14890875,3013.1,3012.3,0.13961903]
[1769625858109,0.14890875,3013.1,3011.8,0.13961903]
[1769625865227,0.14890875,3013.1,3012.0,0.14039796]
[1769625879525,0.14890875,3013.1,3012.1,1.05970207]
[1769625879732,0.14890875,3013.1,3012.2,0.1463206]
[1769625884241,0.14890875,3013.1,3012.4,0.1463206]
[1769625887742,0.14890875,3013.1,3012.1,0.1463206]
[1769625888046,0.13994795,3012.9,3011.9,6.07683633]
[1769625888848,0.13994795,3012.9,3012.0,0.1463206]
[1769625890250,1.19965002,3012.8,3012.0,0.1463206]
[1769625890457,1.19965002,3012.2,3011.6,11.94315554]
[1769625890643,0.13994795,3012.2,3011.4,0.1463206]
[1769625891143,0.13994795,3012.5,3011.4,0.1463206]
[1769625891344,0.13994795,3012.5,3011.6,0.1463206]
[1769625891852,0.13994795,3012.5,3011.8,0.1463206]
[1769625896152,0.1618842,3012.7,3011.8,0.1463206]
[1769625900253,0.1618842,3012.4,3011.4,0.17031538]
[1769625900952,0.1618842,3012.9,3012.3,1.05970207]
[1769625901360,0.1618842,3012.9,3012.1,1.05970207]
[1769625902054,0.16517778,3013.1,3012.1,1.05970207]
[1769625902250,0.05776303,3013.1,3012.1,1.05970207]
[1769625902452,0.05776303,3013.1,3012.2,0.17031538]
[1769625902961,1.95,3013.7,3011.5,0.17031538]
[1769625902962,1.05970207,3012.4,3011.5,0.17031538]
[1769625903161,1.05970207,3012.6,3011.5,0.17031538]
[1769625903463,0.00261124,3012.6,3011.5,0.17031538]
[1769625903658,0.00261124,3012.6,3011.5,1.23001745]
[1769625903957,0.00261124,3012.6,3011.6,0.17031538]
[1769625905454,0.00261124,3012.6,3011.7,1.05970207]
[1769625905658,0.00261124,3012.6,3011.8,0.17031538]
[1769625907656,0.1618842,3012.1,3011.3,0.00243131]
[1769625907857,0.1618842,3012.1,3011.3,0.17274669]
[1769625908655,0.1618842,3012.1,3011.3,0.00243131]
[1769625910958,0.1618842,3012.3,3011.6,0.17031538]
[1769625912551,0.00261124,3012.6,3011.6,0.17031538]
[1769625912751,0.16449544,3012.6,3011.6,0.17031538]
[1769625916660,0.1618842,3012.3,3011.3,0.17274669]
[1769625917555,0.1618842,3012.3,3011.4,0.17031538]
[1769625917757,0.1618842,3012.5,3011.4,0.17031538]
[1769625920764,0.1618842,3012.1,3011.3,0.00243131]
[1769625921674,0.1618842,3011.7,3011.3,0.00243131]
[1769625921966,0.1618842,3011.7,3011.0,0.17031538]
[1769625922662,0.1618842,3011.9,3011.0,0.17031538]
[1769625922869,0.1618842,3011.9,3011.0,0.17446374]
[1769625923372,0.1618842,3011.9,3011.0,0.00414836]
[1769625927868,3.63821,3012.3,3011.0,0.00414836]
[1769625927869,0.14769,3011.5,3011.0,0.00414836]
[1769625928069,0.14769,3011.5,3010.6,0.16120698]
[1769625929074,0.14769,3011.9,3011.1,0.16120698]
[1769625931674,0.14769,3012.1,3011.1,0.16120698]
[1769625932176,0.14769,3011.8,3010.8,0.16120698]
[1769625936583,0.14769,3011.8,3010.6,1.06246444]
[1769625936883,1.20739207,3010.7,3009.9,0.16120698]
[1769625937076,0.14769,3010.7,3009.9,0.16120698]
[1769625937576,0.14769,3011.0,3009.9,0.16120698]
[1769625937878,0.14769,3011.2,3010.1,0.16120698]
[1769625938077,3.42549411,3011.1,3010.3,0.16120698]
[1769625938281,0.14769,3011.4,3010.5,0.16120698]
[1769625938578,3.42518252,3011.3,3010.5,0.16120698]
[1769625938882,0.14769,3011.1,3010.3,0.16120698]
[1769625942375,0.14769,3011.5,3010.3,0.16120698]
[1769625942582,0.14769,3011.3,3010.3,0.16120698]
[1769625944079,0.14769,3012.1,3010.3,0.16120698]
[1769625944274,0.14769,3011.9,3010.3,0.16120698]
[1769625944480,0.14769,3011.7,3010.6,0.16120698]
[1769625947886,0.14769,3011.4,3010.0,0.16120698]
[1769625960885,0.14769,3011.4,3010.1,0.13992281]
[1769625961290,0.14769,3011.4,3010.3,0.13992281]
[1769625961792,0.13878663,3012.0,3010.6,1.06113315]
[1769625961999,0.13878663,3012.0,3010.7,0.13992281]
[1769625962602,0.13878663,3012.5,3010.7,0.13992281]
[1769625962793,0.13878663,3012.3,3010.7,0.13992281]
[1769625963391,0.13878663,3012.3,3010.8,0.13992281]
[1769625963692,0.13878663,3012.5,3011.1,0.13992281]
[1769625965198,0.00261124,3012.6,3011.5,0.13992281]
[1769625966603,0.14139787,3012.6,3011.5,0.13992281]
[1769625969113,0.00261124,3012.6,3011.5,0.13992281]
[1769625979414,0.14139787,3012.6,3011.5,0.13992281]
[1769625983421,0.00261124,3012.6,3011.5,0.13992281]
[1769625985129,0.14575042,3012.6,3011.5,0.13992281]
[1769625987034,0.13649077,3012.4,3011.2,0.14254761]
[1769625987226,0.13649077,3012.3,3010.9,0.14254761]
[1769625989233,0.13649077,3012.1,3010.9,0.14254761]
[1769626001647,1.19719568,3011.9,3010.9,0.14254761]
[1769626002753,0.13649077,3011.8,3010.9,0.14254761]
[1769626004046,0.13649077,3012.0,3010.9,0.14254761]
[1769626005853,1.19719568,3011.9,3010.9,0.14254761]
[1769626006949,0.13649077,3011.8,3009.9,0.00410476]
[1769626007156,1.06070491,3010.0,3009.4,0.77145547]
[1769626007352,1.06070491,3010.0,3009.4,0.62265518]
[1769626008154,1.06491868,3010.0,3009.4,0.62663896]
[1769626008347,0.00190544,3009.9,3008.9,0.14880029]
[1769626008652,0.00190544,3009.7,3008.5,0.14784757]
[1769626008852,1.06070491,3009.8,3008.5,0.14784757]
[1769626008853,0.00190544,3009.3,3008.5,0.14784757]
[1769626009048,1.06070491,3009.2,3008.4,0.56195519]
[1769626009452,1.06070491,3009.2,3008.4,0.56622076]
[1769626009757,0.00190544,3009.3,3008.4,0.56622076]
[1769626011761,0.00190544,3009.3,3008.5,0.14836506]
[1769626011955,0.00481648,3009.7,3008.5,0.14836506]
[1769626012155,1.95481648,3009.7,3008.5,0.14836506]
[1769626012352,0.00481648,3009.7,3008.5,0.14836506]
[1769626012554,2.29234,3009.8,3008.5,0.14836506]
[1769626013048,0.16634,3009.8,3008.5,0.14836506]
[1769626013254,0.17041162,3009.8,3008.5,0.14836506]
[1769626015254,0.00421377,3010.0,3008.5,0.14836506]
[1769626017673,0.00588619,3011.0,3009.4,0.14641518]
[1769626018374,40.96627,3011.2,3009.4,0.14641518]
[1769626018570,40.97599314,3011.2,3009.4,0.14641518]
[1769626019066,0.00408781,3011.2,3009.6,0.14641518]
[1769626020068,0.00972314,3011.2,3009.6,0.14641518]
[1769626020271,0.00563533,3011.1,3009.6,0.14641518]
[1769626021480,0.00408781,3011.2,3009.6,0.14641518]
[1769626022171,0.00408781,3011.2,3009.7,0.14641518]
[1769626023765,0.00408781,3011.2,3009.8,0.14641518]
[1769626024370,0.00408781,3011.2,3010.1,0.14641518]
[1769626024571,3.55721,3012.2,3010.1,0.14641518]
[1769626024781,0.0055546,3012.1,3010.1,0.14641518]
[1769626025475,0.00911011,3012.1,3010.1,0.14641518]
[1769626025674,3.40111011,3012.1,3010.1,0.14641518]
[1769626026079,3.40711011,3012.1,3010.1,0.14641518]
[1769626026266,3.40711011,3012.1,3010.4,0.14641518]
[1769626026469,0.00911011,3012.1,3010.4,0.14641518]
[1769626026778,0.00355551,3012.1,3010.7,0.14734594]
[1769626027077,0.00355551,3012.1,3010.7,0.15049808]
[1769626028374,0.00355551,3012.1,3010.7,0.31678808]
[1769626028575,0.00355551,3012.1,3010.8,0.14770124]
[1769626028786,0.00355551,3012.1,3010.7,0.16944214]
[1769626028787,3.42,3012.6,3011.0,0.14770124]
[1769626029080,1.951,3012.6,3011.0,0.14770124]
[1769626029381,1.951,3012.6,3011.1,0.14770124]
[1769626029982,1.9544326,3012.6,3011.1,0.14770124]
[1769626030485,1.95660394,3012.6,3011.1,0.14770124]
[1769626030780,0.00560394,3012.6,3011.1,0.14770124]
[1769626032484,0.00293272,3012.5,3011.1,0.14770124]
[1769626035482,3.456,3012.4,3011.1,0.14770124]
[1769626038086,0.00182103,3012.3,3011.1,0.14770124]
[1769626039980,3.456,3012.4,3011.1,0.14770124]
[1769626040888,0.1662,3012.5,3011.1,0.14770124]
[1769626041088,3.466,3012.4,3011.1,0.14770124]
[1769626045292,3.474,3012.4,3011.1,0.14770124]
[1769626046291,3.475,3012.5,3011.2,0.14888214]
[1769626046780,0.0034326,3012.6,3011.2,0.14888214]
[1769626046986,3.4794326,3012.6,3011.2,0.14888214]
[1769626048186,3.46953586,3012.5,3011.2,0.14888214]
[1769626048389,3.4814326,3012.6,3011.2,0.14888214]
[1769626048585,3.4695356,3012.5,3011.2,0.14888214]
[1769626048891,0.0034326,3012.6,3011.6,0.14853275]
[1769626049285,0.61386871,3013.0,3011.6,0.14853275]
[1769626049489,3.47033936,3012.9,3011.6,0.14853275]
[1769626049687,3.47033936,3012.8,3011.6,0.14853275]
[1769626049888,2.56386871,3013.0,3011.6,0.14853275]
[1769626050193,3.47032795,3012.9,3011.6,0.14853275]
[1769626050497,3.47032795,3012.8,3011.6,0.14853275]
[1769626050793,2.56890742,3013.0,3011.6,0.14853275]
[1769626051093,3.47001056,3012.9,3011.6,0.14853275]
[1769626051295,3.47001056,3012.8,3011.6,0.14853275]
[1769626051591,2.56890742,3013.0,3011.6,0.14853275]
[1769626051792,3.47126087,3012.9,3011.6,0.14853275]
[1769626051993,3.47126087,3012.8,3011.6,0.14853275]
[1769626052195,2.56890742,3013.0,3011.6,0.14853275]
[1769626052397,3.47269225,3012.9,3011.6,0.14853275]
[1769626052598,3.47269225,3012.8,3011.6,0.14853275]
[1769626052792,4.09690742,3013.0,3011.6,0.14853275]
[1769626053098,3.47259283,3012.9,3011.6,0.14853275]
[1769626053293,3.47259283,3012.8,3011.6,0.14853275]
[1769626053595,4.09690742,3013.0,3011.6,0.14853275]
[1769626053797,3.47411032,3012.9,3011.6,0.14853275]
[1769626054096,3.47411032,3012.8,3011.6,0.14853275]
[1769626054396,3.47411032,3012.7,3011.6,0.14853275]
[1769626054604,0.00152602,3012.9,3011.6,0.14853275]
[1769626054791,3.47594851,3012.8,3011.6,0.14853275]
[1769626055100,3.47594851,3012.7,3011.6,0.14853275]
[1769626055291,0.00152602,3012.9,3011.6,0.14853275]
[1769626055602,3.47614787,3012.8,3011.6,0.14853275]
[1769626055897,3.47614787,3012.7,3011.6,0.14853275]
[1769626056100,0.61760829,3013.0,3011.7,0.14804519]
[1769626056490,0.00373958,3013.0,3011.9,0.14822015]
[1769626061894,0.00129354,3012.9,3011.3,1.95]
[1769626062101,0.00129354,3012.9,3011.2,0.16626]
[1769626062300,0.14526461,3012.7,3011.2,0.16626]
[1769626062501,0.14526461,3012.5,3011.2,0.16626]
[1769626063996,0.14526461,3012.5,3011.3,0.13907189]
[1769626076704,0.16618,3012.7,3011.3,0.13907189]
[1769626076705,0.14716592,3012.3,3011.3,0.13907189]
[1769626078604,0.14716592,3012.3,3010.8,0.16629]
[1769626078808,0.14716592,3012.3,3010.9,0.14288293]
[1769626078809,0.14716592,3012.1,3010.9,0.14288293]
[1769626079009,3.61448543,3012.0,3010.9,0.14288293]
[1769626079213,0.14716592,3012.0,3010.9,0.14288293]
[1769626079902,0.14716592,3011.8,3010.7,0.14603507]
[1769626080100,0.14716592,3011.6,3010.7,0.14603507]
[1769626080513,0.16623,3011.9,3010.7,0.14603507]
[1769626080705,3.46667237,3011.8,3010.7,0.14603507]
[1769626080901,0.14716592,3012.1,3010.7,0.14603507]
[1769626081101,3.46663432,3012.0,3010.7,0.14603507]
[1769626081304,3.46663432,3011.9,3010.7,0.14603507]
[1769626081608,0.14716592,3012.4,3010.8,0.14288293]
[1769626081816,3.46508931,3012.3,3010.9,0.14288293]
[1769626082003,0.1662,3012.5,3010.9,0.14288293]
[1769626082208,3.46493281,3012.4,3010.9,0.14288293]
[1769626082408,3.46493281,3012.3,3010.9,0.14288293]
[1769626082608,0.1662,3012.5,3010.9,0.14288293]
[1769626082809,3.46476671,3012.4,3010.9,0.14288293]
[1769626083115,3.46476671,3012.3,3010.9,0.14288293]
[1769626084809,0.14544687,3012.7,3011.0,0.14288293]
[1769626085008,3.60973116,3012.6,3011.0,0.14288293]
[1769626085216,3.60973116,3012.5,3011.0,0.14288293]
[1769626085418,3.46428429,3012.4,3011.0,0.14288293]
[1769626085717,3.46428429,3012.3,3011.0,0.14288293]
[1769626085905,0.14544687,3012.5,3011.0,0.14288293]
[1769626086109,3.46439042,3012.4,3011.0,0.14288293]
[1769626086309,3.46439042,3012.3,3011.0,0.14288293]
[1769626086517,0.14544687,3012.5,3011.0,0.14288293]
[1769626090322,3.46831155,3012.4,3011.0,0.14288293]
[1769626090522,0.14544687,3012.5,3011.0,0.14288293]
[1769626090821,3.46843418,3012.4,3011.0,0.14288293]
[1769626091022,0.14544687,3012.5,3011.0,0.14288293]
[1769626091222,3.46843317,3012.4,3011.0,0.14288293]
[1769626091521,0.14544687,3012.5,3011.0,0.14288293]
[1769626091824,3.4702633,3012.4,3011.0,0.14288293]
[1769626092016,0.14544687,3012.5,3011.0,0.14288293]
[1769626092215,3.4702635,3012.4,3011.0,0.14288293]
[1769626092415,0.14544687,3012.5,3011.0,0.14288293]
[1769626092615,3.47075166,3012.4,3011.0,0.14288293]
[1769626092817,0.14544687,3012.5,3011.1,0.14288293]
[1769626093719,0.3055557,3012.8,3011.1,0.14288293]
[1769626093926,3.47073582,3012.7,3011.1,0.14288293]
[1769626094119,3.47073582,3012.6,3011.1,0.14288293]
[1769626094323,3.61011152,3012.6,3011.1,0.14288293]
[1769626094526,3.47073582,3012.5,3011.1,0.14288293]
[1769626094918,3.47073582,3012.5,3011.1,0.30915293]
[1769626095119,3.47073582,3012.5,3011.2,0.14288293]
[1769626096323,0.1403377,3012.4,3011.2,0.14288293]
[1769626098722,0.14397434,3012.2,3010.8,0.14288293]
[1769626099322,0.14397434,3012.0,3010.8,0.14288293]
[1769626101825,42.02666392,3012.5,3010.8,0.14288293]
[1769626101826,0.13924002,3012.3,3010.8,0.14288293]
[1769626102027,3.61022004,3012.2,3010.8,0.14288293]
[1769626102228,0.13924002,3012.2,3010.8,0.14288293]
[1769626103030,0.30570425,3012.5,3011.0,0.14288293]
[1769626103227,3.47064578,3012.4,3011.0,0.14288293]
[1769626103433,0.30570425,3012.5,3011.0,0.14288293]
[1769626103733,3.61019106,3012.4,3011.0,0.14288293]
[1769626103937,0.13950425,3012.4,3011.0,0.14288293]
[1769626106633,0.13586032,3012.8,3011.0,0.14288293]
[1769626106839,3.60669933,3012.7,3011.0,0.14288293]
[1769626107137,3.60669933,3012.6,3011.0,0.14288293]
[1769626107338,3.60932372,3012.5,3011.0,0.14288293]
[1769626107536,3.47083901,3012.4,3011.0,0.14288293]
[1769626108838,0.13835682,3012.7,3011.1,0.14192051]
[1769626109030,0.13835682,3012.9,3011.5,0.14192051]
[1769626111744,0.14058587,3012.8,3011.5,0.14192051]
[1769626123548,0.14058587,3012.8,3011.6,0.14192051]
[1769626128554,0.14058587,3012.8,3011.8,0.14192051]
[1769626128850,0.00373958,3013.0,3012.2,0.14192051]
[1769626129054,0.00373958,3013.0,3012.4,0.14192051]
[1769626139456,0.13536752,3012.9,3012.0,0.14677264]
[1769626140159,1.06004183,3012.6,3011.6,5.94654574]
[1769626140353,1.19540935,3012.4,3011.7,0.14677264]
[1769626140558,0.13536752,3012.4,3011.7,0.14677264]
[1769626143863,0.13362704,3012.6,3011.7,0.14677264]
[1769626144062,0.13362704,3012.8,3011.8,0.14677264]
[1769626148262,0.00373958,3013.0,3011.8,0.14677264]
[1769626148468,0.13053084,3013.5,3012.6,0.14677264]
[1769626148665,0.16613,3013.6,3012.6,0.14677264]
[1769626148666,0.13046877,3013.3,3012.6,0.14677264]
[1769626148866,3.4698569,3013.2,3012.4,0.14677264]
[1769626149167,0.13046877,3013.3,3012.4,0.14677264]
[1769626149356,3.60028817,3013.2,3012.4,0.14677264]
[1769626149553,0.13046877,3013.2,3012.4,0.14677264]
[1769626149759,0.13046877,3013.1,3012.2,0.14677264]
[1769626151765,0.13516063,3013.3,3012.2,0.14677264]
[1769626152767,0.13516063,3013.3,3012.4,0.14677264]
[1769626157075,3.46824599,3013.2,3012.4,0.14677264]
[1769626157374,3.46824599,3013.1,3012.4,0.14677264]
[1769626157671,0.13117718,3013.2,3012.4,0.14677264]
[1769626157871,3.46823666,3013.1,3012.4,0.14677264]
[1769626158073,0.13117718,3013.2,3012.4,0.14677264]